fUSD/lending_fUSD_20240818
["ID","MTS","AMOUNT","RATE_DAILY","PERIOD"]
[335233906,1724003432475,-2239.51066299,0.00010899,2]
[335233907,1724003432485,-2239.51066299,0.00010899,2]
[335233908,1724003432495,-2239.51066299,0.00010899,2]
[335233909,1724003432504,-532.43831257,0.000109,2]
[335233912,1724003437955,-155.0,9.999e-05,2]
[335233913,1724003437965,-321.81295156,0.000109,2]
[335233914,1724003438071,-2173.28413778,0.000109,2]
[335233915,1724003438131,-1367.5905978,0.000109,2]
[335233916,1724003438142,-437.70943335,0.000109,2]
[335233917,1724003438190,-3022.99999999,0.000109,2]
[335233918,1724003438213,-600.0,0.000109,2]
[335233919,1724003438224,-402.52239051,0.000109,2]
[335233936,1724003440129,-37741.0451726,0.000109,2]
[335233937,1724003440140,-49633.9883586,0.000109,2]
[335233938,1724003440254,-696.00414387,0.000109,2]
[335233939,1724003440265,-894.73028,0.000109,2]
[335233940,1724003440276,-654.16999995,0.000109,2]
[335233941,1724003440374,-508.47077684,0.000109,2]
[335233942,1724003440530,-33704.05277192,0.000109,2]
[335233943,1724003440539,-523.8009413,0.000109,2]
[335233944,1724003440549,-523.80094129,0.000109,2]
[335233946,1724003440559,-2239.51066299,0.000109,2]
[335233947,1724003440568,-172.89439982,0.000109,2]
[335233949,1724003440577,-172.89439981,0.000109,2]
[335233951,1724003440586,-150.189748,0.00010918,2]
[335233953,1724003440595,-1627.48,0.00010933,2]
[335233955,1724003440605,-183.0,0.0001094,2]
[335233957,1724003440614,-250.0,0.00010959,2]
[335233959,1724003440624,-150.0,0.00010959,2]
[335233961,1724003440633,-626.86788084,0.00010989,2]
[335233963,1724003440642,-500.0,0.00010989,2]
[335233965,1724003440651,-435.95315931,0.00010989,2]
[335233966,1724003440660,-500.0,0.00010989,2]
[335233968,1724003440670,-500.0,0.00010989,2]
[335233970,1724003440680,-500.0,0.00010989,2]
[335233972,1724003440689,-587.59198426,0.00010989,2]
[335233974,1724003440699,-500.0,0.00010989,2]
[335233976,1724003440708,-500.0,0.00010989,2]
[335233978,1724003440717,-500.0,0.00010989,2]
[335233980,1724003440728,-500.0,0.00010989,2]
[335233982,1724003440739,-500.0,0.00010989,2]
[335233984,1724003440748,-500.0,0.00010989,2]
[335233986,1724003440758,-500.0,0.00010989,2]
[335233988,1724003440767,-2660.75,0.00010989,2]
[335233990,1724003440777,-36674.50030252,0.0001099,2]
[335234010,1724003443700,-3056.08788515,0.0001099,2]
[335234011,1724003443712,-2183.82,0.0001099,2]
[335234014,1724003443732,-43876.50869713,0.0001099,2]
[335234015,1724003443742,-44076.39593807,0.0001099,2]
[335234027,1724003446082,-25620.08245833,0.0001099,2]
[335234028,1724003446091,-151.0,0.0001099,2]
[335234029,1724003446100,-151.0,0.0001099,2]
[335234030,1724003446109,-238.227048,0.0001099,2]
[335234031,1724003446118,-238.227048,0.0001099,2]
[335234032,1724003446127,-151.0,0.0001099,2]
[335234033,1724003446136,-151.0,0.0001099,2]
[335234034,1724003446145,-151.0,0.0001099,2]
[335234035,1724003446154,-243.974874,0.0001099,2]
[335234036,1724003446163,-243.974874,0.0001099,2]
[335234037,1724003446173,-151.0,0.0001099,2]
[335234038,1724003446182,-151.0,0.0001099,2]
[335234039,1724003446191,-151.0,0.0001099,2]
[335234040,1724003446200,-151.0,0.0001099,2]
[335234041,1724003446209,-151.0,0.0001099,2]
[335234042,1724003446218,-195.193103,0.0001099,2]
[335234043,1724003446227,-195.193103,0.0001099,2]
[335234044,1724003446237,-151.0,0.0001099,2]
[335234045,1724003446247,-151.0,0.0001099,2]
[335234046,1724003446257,-187.744841,0.0001099,2]
[335234047,1724003446265,-151.0,0.0001099,2]
[335234048,1724003446275,-187.744841,0.0001099,2]
[335234049,1724003446284,-151.0,0.0001099,2]
[335234050,1724003446292,-151.0,0.0001099,2]
[335234051,1724003446302,-151.0,0.0001099,2]
[335234052,1724003446311,-151.0,0.0001099,2]
[335234053,1724003446320,-151.0,0.0001099,2]
[335234054,1724003446329,-151.0,0.0001099,2]
[335234055,1724003446338,-151.0,0.0001099,2]
[335234056,1724003446347,-617.241469,0.0001099,2]
[335234057,1724003446356,-151.0,0.0001099,2]
[335234058,1724003446366,-151.0,0.0001099,2]
[335234059,1724003446379,-151.0,0.0001099,2]
[335234060,1724003446387,-151.0,0.0001099,2]
[335234061,1724003446396,-151.0,0.0001099,2]
[335234062,1724003446405,-151.0,0.0001099,2]
[335234065,1724003446416,-194.524213,0.0001099,2]
[335234067,1724003446424,-194.524213,0.0001099,2]
[335234068,1724003446433,-151.0,0.0001099,2]
[335234069,1724003446442,-152.512244,0.00010995,2]
[335234070,1724003446454,-152.512244,0.00010995,2]
[335234071,1724003446463,-151.0,0.00010995,2]
[335234072,1724003446472,-151.0,0.00010995,2]
[335234073,1724003446481,-238.227048,0.00010995,2]
[335234074,1724003446491,-238.227048,0.00010995,2]
[335234075,1724003446499,-151.0,0.00010995,2]
[335234076,1724003446508,-151.0,0.00010995,2]
[335234077,1724003446517,-151.0,0.00010995,2]
[335234078,1724003446526,-243.974874,0.00010995,2]
[335234079,1724003446535,-243.974874,0.00010995,2]
[335234080,1724003446544,-151.0,0.00010995,2]
[335234081,1724003446553,-286.294607,0.00010995,2]
[335234082,1724003446562,-151.0,0.00010995,2]
[335234083,1724003446571,-151.0,0.00010995,2]
[335234084,1724003446580,-262.400195,0.00010995,2]
[335234085,1724003446589,-195.193103,0.00010995,2]
[335234086,1724003446599,-195.193103,0.00010995,2]
[335234087,1724003446608,-151.0,0.00010995,2]
[335234088,1724003446617,-187.744841,0.00010995,2]
[335234089,1724003446627,-187.744841,0.00010995,2]
[335234090,1724003446635,-151.0,0.00010995,2]
[335234091,1724003446644,-238.18459997,0.00010995,2]
[335234092,1724003446654,-874.4887855,0.00010995,2]
[335234093,1724003446663,-2315.6061274,0.00010995,2]
[335234094,1724003446672,-23656.4645382,0.00010995,2]
[335234095,1724003446682,-3865.04929647,0.00010997,2]
[335234096,1724003446691,-1000.0,0.00010999,2]
[335234097,1724003446700,-1000.0,0.00010999,2]
[335234098,1724003446709,-1000.0,0.00010999,2]
[335234099,1724003446718,-1000.0,0.00010999,2]
[335234100,1724003446727,-1000.0,0.00010999,2]
[335234101,1724003446736,-1000.0,0.00010999,2]
[335234102,1724003446748,-1000.0,0.00010999,2]
[335234103,1724003446757,-1000.0,0.00010999,2]
[335234104,1724003446767,-1000.0,0.00010999,2]
[335234105,1724003446776,-1000.0,0.00010999,2]
[335234106,1724003446786,-8.7877035,0.00010999,2]
[335234107,1724003446944,-656.9760301,0.00010999,2]
[335234109,1724003523174,150.0,8.454e-05,2]
[335234110,1724003523196,150.0,8.454e-05,2]
[335234111,1724003523219,80.17,8.454e-05,2]
[335234112,1724003524949,-380.17,0.00010718,2]
[335234113,1724003524972,-251.5377,0.000108,2]
[335234114,1724003524994,-306.4721,0.000108,2]
[335234115,1724003525017,-300.0,0.00010899,2]
[335234116,1724003525041,-1235.73538646,0.000109,2]
[335234117,1724003525066,-9639.35249729,0.000109,2]
[335234118,1724003551433,1416.6197,0.000108,2]
[335234119,1724003561261,2064.67886749,0.000109,2]
[335234120,1724003578395,1086.61452428,0.000109,2]
[335234122,1724003615439,157.06,0.00010463,2]
[335234123,1724003638416,590.27,0.00010467,2]
[335234124,1724003640489,493.199,0.000109,2]
[335234125,1724003652610,2078.29022448,0.000109,2]
[335234126,1724003652632,20000.0,0.000109,2]
[335234127,1724003652653,6943.14427552,0.000109,2]
[335234128,1724003676052,238.29,0.00010536,2]
[335234129,1724003690347,580.13,0.00010435,2]
[335234131,1724003727045,773.1112,0.000109,2]
[335234132,1724003752928,300.0,0.00010889,2]
[335234134,1724003785400,687.41722855,0.00010899,2]
[335234135,1724003809521,710.52,0.0001049,2]
[335234136,1724003821839,9465.5612,0.000109,2]
[335234137,1724003829778,603.91,0.00010368,2]
[335234138,1724003839809,200.0,0.00010368,2]
[335234139,1724003841032,200.0,0.00010368,2]
[335234140,1724003850828,328.10284,0.0001089,2]
[335234141,1724003874732,480.03,0.00010363,2]
[335234142,1724003881617,1136.2729,0.000109,2]
[335234143,1724003923572,250.0,0.00010363,2]
[335234144,1724003963765,7985.19524623,0.000109,2]
[335234145,1724003991730,23900.0,0.00010376,2]
[335234146,1724004015069,393.65,8.504e-05,2]
[335234147,1724004015422,393.65,0.00010767,2]
[335234149,1724004104100,-152.0,0.00013872,20]
[335234150,1724004104125,-152.0,0.00013991,21]
[335234151,1724004129061,-152.0,0.00013635,18]
[335234152,1724004129090,-152.0,0.00013754,19]
[335234153,1724004129801,6789.75701903,0.00010899,2]
[335234154,1724004136260,205.81554601,0.00010155,2]
[335234155,1724004136309,500.0,0.00010155,2]
[335234156,1724004144664,2502.58566001,0.00010899,2]
[335234157,1724004148434,500.0,0.00010155,2]
[335234158,1724004153669,-152.0,0.00013397,16]
[335234159,1724004153698,-152.0,0.00013516,17]
[335234160,1724004155953,172.81,0.00010254,2]
[335234161,1724004159530,4567.46918565,0.00010899,2]
[335234162,1724004168516,-152.0,0.00013159,14]
[335234163,1724004168543,-152.0,0.00013278,15]
[335234164,1724004176621,-152.0,0.00012922,12]
[335234165,1724004176648,-152.0,0.0001304,13]
[335234166,1724004176692,500.0,0.00010155,2]
[335234167,1724004183913,-152.0,0.00012684,10]
[335234168,1724004183938,-152.0,0.00012803,11]
[335234169,1724004183963,-676.0,0.00012874,10]
[335234170,1724004192416,1298.23330788,0.00010899,2]
[335234172,1724004295171,4650.0,0.00010829,2]
[335234173,1724004320010,150.0,0.00010314,2]
[335234174,1724004320033,150.0,0.00010314,2]
[335234175,1724004320055,150.0,0.00010314,2]
[335234176,1724004320077,150.0,0.00010314,2]
[335234177,1724004320098,150.0,0.00010314,2]
[335234178,1724004320119,90.0,0.00010314,2]
[335234179,1724004369157,150.0,0.00010267,2]
[335234180,1724004369177,90.01,0.00010267,2]
[335234181,1724004396355,150.0,0.00010899,2]
[335234182,1724004396379,14.40260801,0.00010899,2]
[335234183,1724004404975,1138.87080337,0.00010899,2]
[335234185,1724004414178,150.0,0.00010899,2]
[335234186,1724004414201,5.0,0.00010899,2]
[335234187,1724004417865,150.0,0.00010899,2]
[335234188,1724004417889,5.0,0.00010899,2]
[335234189,1724004418317,155.0,0.00010899,2]
[335234190,1724004420992,203.87566736,0.00010899,2]
[335234191,1724004429133,150.0,0.0001,2]
[335234192,1724004429155,221.42739199,0.0001,2]
[335234193,1724004429175,150.0,0.0001,2]
[335234194,1724004429199,28.57260801,0.0001,2]
[335234195,1724004438361,150.0,0.00010899,2]
[335234196,1724004438382,5.0,0.00010899,2]
[335234197,1724004438408,145.0,0.00010899,2]
[335234198,1724004438429,10.0,0.00010899,2]
[335234199,1724004441580,600.74422133,0.00010899,2]
[335234200,1724004447935,150.0,0.00010899,2]
[335234201,1724004447956,150.0,0.00010899,2]
[335234202,1724004447979,67.87511774,0.00010899,2]
[335234203,1724004453215,150.0,0.00010899,2]
[335234204,1724004453237,150.0,0.00010899,2]
[335234205,1724004453260,132.47832469,0.00010899,2]
[335234206,1724004456668,150.0,0.00010899,2]
[335234207,1724004456689,5.0,0.00010899,2]
[335234208,1724004458153,150.0,0.00010899,2]
[335234209,1724004458174,5.0,0.00010899,2]
[335234210,1724004461419,218.91005949,0.00010899,2]
[335234211,1724004461519,328.2488375,0.00010899,2]
[335234212,1724004466103,150.0,0.00010899,2]
[335234213,1724004466123,5.0,0.00010899,2]
[335234214,1724004477419,150.0,0.00010899,2]
[335234215,1724004477439,5.0,0.00010899,2]
[335234216,1724004489023,380.32741541,0.00010899,2]
[335234217,1724004489320,155.0,0.00010899,2]
[335234218,1724004495927,150.0,0.00010899,2]
[335234219,1724004495947,5.0,0.00010899,2]
[335234220,1724004497097,145.0,0.00010899,2]
[335234221,1724004497132,108.79099211,0.00010899,2]
[335234222,1724004498626,365.80180037,0.00010899,2]
[335234223,1724004498899,159.60847032,0.00010899,2]
[335234224,1724004504417,150.0,0.00010899,2]
[335234225,1724004504437,5.0,0.00010899,2]
[335234226,1724004505596,145.0,0.00010899,2]
[335234227,1724004505616,10.0,0.00010899,2]
[335234228,1724004506904,140.0,0.00010899,2]
[335234229,1724004506923,150.0,0.00010899,2]
[335234230,1724004506948,57.69615481,0.00010899,2]
[335234231,1724004507595,92.30384519,0.00010899,2]
[335234232,1724004507616,62.69615481,0.00010899,2]
[335234233,1724004512304,87.30384519,0.00010899,2]
[335234234,1724004512324,67.78629935,0.00010899,2]
[335234235,1724004514322,82.21370065,0.00010899,2]
[335234236,1724004514343,72.78629935,0.00010899,2]
[335234237,1724004514634,77.21370065,0.00010899,2]
[335234238,1724004514656,142.66471277,0.00010899,2]
[335234239,1724004526365,7.33528723,0.00010361,2]
[335234240,1724004526387,260.85556546,0.00010361,2]
[335234241,1724004526411,5581.80914731,0.00010361,2]
[335234242,1724004566357,653.64489815,0.00010899,2]
[335234264,1724004589621,203.41395605,0.00010899,2]
[335234271,1724004610628,164.37927092,0.00010899,2]
[335234296,1724004632230,-764.0,0.00010929,2]
[335234298,1724004632240,-289.57921824,0.00010949,2]
[335234299,1724004632249,-528.91996067,0.00010949,2]
[335234301,1724004632258,-297.48958849,0.00010949,2]
[335234302,1724004632268,-2000.0,0.00010959,2]
[335234303,1724004632277,-250.0,0.00010959,2]
[335234304,1724004632286,-150.0,0.00010988,2]
[335234305,1724004632295,-300.0,0.00010988,2]
[335234306,1724004632304,-500.0,0.00010989,2]
[335234307,1724004632313,-501.84810192,0.00010989,2]
[335234308,1724004632322,-500.0,0.00010989,2]
[335234309,1724004632331,-500.0,0.00010989,2]
[335234310,1724004632339,-500.0,0.00010989,2]
[335234311,1724004632349,-500.0,0.00010989,2]
[335234312,1724004632358,-500.0,0.00010989,2]
[335234313,1724004632368,-376.34645742,0.00010989,2]
[335234314,1724004632379,-123.65354258,0.00010989,2]
[335234315,1724004632387,-256.38532446,0.00010989,2]
[335234316,1724004632398,-828.31467554,0.00010989,2]
[335234317,1724004632407,-500.0,0.00010989,2]
[335234318,1724004632416,-1293.37614323,0.00010989,2]
[335234319,1724004632427,-334.79756153,0.00010989,2]
[335234320,1724004632439,-184.87629524,0.00010989,2]
[335234321,1724004632447,-500.0,0.00010989,2]
[335234322,1724004632456,-631.96048648,0.00010989,2]
[335234323,1724004632467,-553.0,0.00010989,2]
[335234324,1724004632478,-530.14499983,0.00010989,2]
[335234327,1724004638100,-834.78451369,0.00010989,2]
[335234328,1724004638110,-500.0,0.00010989,2]
[335234329,1724004638119,-500.0,0.00010989,2]
[335234330,1724004638128,-500.0,0.00010989,2]
[335234331,1724004638138,-500.0,0.00010989,2]
[335234332,1724004638147,-1249.78,0.00010989,2]
[335234333,1724004638156,-500.0,0.00010989,2]
[335234334,1724004638165,-500.0,0.00010989,2]
[335234335,1724004638175,-530.7,0.00010989,2]
[335234336,1724004638184,-500.0,0.00010989,2]
[335234337,1724004638193,-508.36,0.00010989,2]
[335234338,1724004638203,-604.72,0.00010989,2]
[335234339,1724004638212,-500.0,0.00010989,2]
[335234340,1724004638222,-500.0,0.00010989,2]
[335234341,1724004638231,-1337.4,0.00010989,2]
[335234342,1724004638241,-500.0,0.00010989,2]
[335234343,1724004638251,-500.0,0.00010989,2]
[335234344,1724004638261,-1439.05,0.00010989,2]
[335234345,1724004638271,-75.90850706,0.00010989,2]
[335234346,1724004638283,-1207.67149294,0.00010989,2]
[335234347,1724004638293,-500.0,0.00010989,2]
[335234348,1724004638303,-500.0,0.00010989,2]
[335234349,1724004638313,-1417.64,0.00010989,2]
[335234350,1724004638322,-500.0,0.00010989,2]
[335234351,1724004638332,-500.0,0.00010989,2]
[335234352,1724004638342,-500.0,0.00010989,2]
[335234353,1724004638352,-500.0,0.00010989,2]
[335234354,1724004638362,-913.12,0.00010989,2]
[335234355,1724004638373,-500.0,0.00010989,2]
[335234356,1724004638384,-500.0,0.00010989,2]
[335234357,1724004638393,-500.0,0.00010989,2]
[335234358,1724004638403,-500.0,0.00010989,2]
[335234359,1724004638413,-2517.39,0.00010989,2]
[335234360,1724004638423,-500.0,0.00010989,2]
[335234361,1724004638432,-500.0,0.00010989,2]
[335234362,1724004638441,-3083.43,0.00010989,2]
[335234363,1724004638452,-500.0,0.00010989,2]
[335234364,1724004638461,-186.49945469,0.00010989,2]
[335234365,1724004638471,-500.0,0.00010989,2]
[335234366,1724004638480,-500.0,0.00010989,2]
[335234367,1724004638489,-1039.5,0.00010989,2]
[335234368,1724004638533,-216.0,0.0001099,2]
[335234369,1724004638681,-153.80344521,0.00010996,2]
[335234370,1724004638691,-150.01,0.00010998,2]
[335234371,1724004638701,-500.0,0.00010998,2]
[335234372,1724004638710,-285.26384993,0.00010998,2]
[335234373,1724004638720,-499.99,0.00010998,2]
[335234374,1724004638729,-16.56373743,0.00010999,2]
[335234375,1724004638739,-431.3194,0.00010999,2]
[335234376,1724004638748,-500.0,0.00010999,2]
[335234377,1724004638760,-500.0,0.00010999,2]
[335234378,1724004638770,-363.53196971,0.00010999,2]
[335234379,1724004638779,-500.0,0.00010999,2]
[335234380,1724004638789,-500.0,0.00010999,2]
[335234381,1724004638798,-500.0,0.00010999,2]
[335234382,1724004638809,-500.0,0.00010999,2]
[335234383,1724004638819,-500.0,0.00010999,2]
[335234384,1724004638829,-500.0,0.00010999,2]
[335234385,1724004638840,-610.41794891,0.00010999,2]
[335234386,1724004638850,-500.0,0.00010999,2]
[335234387,1724004638859,-500.0,0.00010999,2]
[335234388,1724004638869,-500.0,0.00010999,2]
[335234389,1724004638879,-500.0,0.00010999,2]
[335234390,1724004638888,-388.57609589,0.00010999,2]
[335234391,1724004638901,-111.42390411,0.00010999,2]
[335234392,1724004638910,-500.0,0.00010999,2]
[335234393,1724004638919,-500.0,0.00010999,2]
[335234394,1724004638929,-500.0,0.00010999,2]
[335234395,1724004638939,-500.0,0.00010999,2]
[335234396,1724004638948,-500.0,0.00010999,2]
[335234397,1724004638958,-500.0,0.00010999,2]
[335234398,1724004638968,-500.0,0.00010999,2]
[335234399,1724004638977,-500.0,0.00010999,2]
[335234400,1724004638987,-500.0,0.00010999,2]
[335234401,1724004638996,-500.0,0.00010999,2]
[335234402,1724004639005,-430.7424734,0.00010999,2]
[335234403,1724004639015,-500.0,0.00010999,2]
[335234404,1724004639024,-500.0,0.00010999,2]
[335234405,1724004639034,-500.0,0.00010999,2]
[335234406,1724004639044,-500.0,0.00010999,2]
[335234407,1724004639053,-500.0,0.00010999,2]
[335234408,1724004639063,-500.0,0.00010999,2]
[335234409,1724004639072,-500.0,0.00010999,2]
[335234410,1724004639082,-500.0,0.00010999,2]
[335234411,1724004639091,-500.0,0.00010999,2]
[335234412,1724004639100,-500.0,0.00010999,2]
[335234413,1724004639110,-500.0,0.00010999,2]
[335234414,1724004639120,-500.0,0.00010999,2]
[335234415,1724004639129,-500.0,0.00010999,2]
[335234416,1724004639138,-500.0,0.00010999,2]
[335234417,1724004639147,-444.3942396,0.00010999,2]
[335234418,1724004639157,-500.0,0.00010999,2]
[335234419,1724004639166,-500.0,0.00010999,2]
[335234420,1724004639176,-505.94254528,0.00010999,2]
[335234421,1724004639185,-470.45917761,0.00010999,2]
[335234422,1724004639199,-29.54082239,0.00010999,2]
[335234423,1724004639209,-500.0,0.00010999,2]
[335234424,1724004639218,-500.0,0.00010999,2]
[335234425,1724004639228,-500.0,0.00010999,2]
[335234426,1724004639237,-500.0,0.00010999,2]
[335234427,1724004639246,-626.57279159,0.00010999,2]
[335234428,1724004639255,-500.0,0.00010999,2]
[335234429,1724004639265,-500.0,0.00010999,2]
[335234430,1724004639274,-500.0,0.00010999,2]
[335234431,1724004639283,-500.0,0.00010999,2]
[335234432,1724004639293,-500.0,0.00010999,2]
[335234433,1724004639302,-502.56308647,0.00010999,2]
[335234434,1724004639312,-500.0,0.00010999,2]
[335234435,1724004639321,-500.0,0.00010999,2]
[335234436,1724004639330,-500.0,0.00010999,2]
[335234437,1724004639340,-500.0,0.00010999,2]
[335234438,1724004639349,-500.0,0.00010999,2]
[335234439,1724004639358,-500.0,0.00010999,2]
[335234440,1724004639367,-500.0,0.00010999,2]
[335234441,1724004639377,-500.0,0.00010999,2]
[335234442,1724004639386,-500.0,0.00010999,2]
[335234443,1724004639395,-1813.05,0.00010999,2]
[335234444,1724004639404,-500.0,0.00010999,2]
[335234445,1724004639413,-536.37453589,0.00010999,2]
[335234446,1724004639423,-1813.05,0.00010999,2]
[335234447,1724004639432,-1813.05,0.00010999,2]
[335234448,1724004639441,-1813.05,0.00010999,2]
[335234449,1724004639450,-1813.05,0.00010999,2]
[335234450,1724004639459,-1579.69876366,0.00010999,2]
[335234451,1724004639477,-233.35123634,0.00010999,2]
[335234452,1724004639486,-1813.05,0.00010999,2]
[335234453,1724004639495,-1813.05,0.00010999,2]
[335234454,1724004639504,-436.53122916,0.00010999,2]
[335234455,1724004639515,-540.65357155,0.00010999,2]
[335234456,1724004639526,-835.86519929,0.00010999,2]
[335234457,1724004639535,-1813.05,0.00010999,2]
[335234458,1724004639544,-1813.05,0.00010999,2]
[335234459,1724004639554,-1813.05,0.00010999,2]
[335234460,1724004639563,-1813.05,0.00010999,2]
[335234461,1724004639572,-1813.05,0.00010999,2]
[335234462,1724004639581,-1813.05,0.00010999,2]
[335234463,1724004639590,-1813.05,0.00010999,2]
[335234464,1724004639599,-500.0,0.00010999,2]
[335234465,1724004639609,-2549.89,0.00010999,2]
[335234466,1724004639618,-1813.05,0.00010999,2]
[335234467,1724004639627,-2549.89,0.00010999,2]
[335234468,1724004639635,-500.0,0.00010999,2]
[335234469,1724004639644,-1813.05,0.00010999,2]
[335234470,1724004639654,-2549.89,0.00010999,2]
[335234471,1724004639663,-500.0,0.00010999,2]
[335234472,1724004639673,-1813.05,0.00010999,2]
[335234473,1724004639681,-2549.89,0.00010999,2]
[335234474,1724004639691,-500.0,0.00010999,2]
[335234475,1724004639700,-1813.05,0.00010999,2]
[335234476,1724004639709,-2549.89,0.00010999,2]
[335234477,1724004639718,-500.0,0.00010999,2]
[335234478,1724004639727,-1813.05,0.00010999,2]
[335234479,1724004639736,-1813.05,0.00010999,2]
[335234480,1724004639745,-500.0,0.00010999,2]
[335234481,1724004639756,-2549.89,0.00010999,2]
[335234482,1724004639767,-1813.18980361,0.00010999,2]
[335234483,1724004639776,-500.0,0.00010999,2]
[335234484,1724004639786,-2549.89,0.00010999,2]
[335234485,1724004639795,-628.25723116,0.00010999,2]
[335234486,1724004639806,-2549.89,0.00010999,2]
[335234487,1724004639815,-2549.89,0.00010999,2]
[335234488,1724004639824,-2549.89,0.00010999,2]
[335234489,1724004639834,-2549.89,0.00010999,2]
[335234490,1724004639844,-600.43416494,0.00010999,2]
[335234491,1724004639858,-1266.25068988,0.00010999,2]
[335234492,1724004639869,-464.27999997,0.00010999,2]
[335234493,1724004639880,-218.92514521,0.00010999,2]
[335234494,1724004639889,-2549.89,0.00010999,2]
[335234495,1724004639899,-1624.09790888,0.00010999,2]
[335234496,1724004639910,-925.79209112,0.00010999,2]
[335234497,1724004639919,-500.0,0.00010999,2]
[335234498,1724004639929,-2549.89,0.00010999,2]
[335234499,1724004639938,-2549.89,0.00010999,2]
[335234500,1724004639948,-500.0,0.00010999,2]
[335234501,1724004639957,-495.51790888,0.00010999,2]
[335234502,1724004639968,-4.48209112,0.00010999,2]
[335234503,1724004639977,-315.5529604,0.00010999,2]
[335234504,1724004639988,-2234.3370396,0.00010999,2]
[335234505,1724004639998,-500.0,0.00010999,2]
[335234506,1724004640007,-205.6629603,0.00010999,2]
[335234509,1724004640639,-295.86931601,0.00010999,2]
[335234510,1724004640648,-466.82427775,0.00010999,2]
[335234511,1724004640659,-33.17572225,0.00010999,2]
[335234512,1724004640668,-2549.89,0.00010999,2]
[335234513,1724004640678,-500.0,0.00010999,2]
[335234514,1724004640687,-2549.89,0.00010999,2]
[335234515,1724004640696,-500.0,0.00010999,2]
[335234516,1724004640705,-2549.89,0.00010999,2]
[335234517,1724004640714,-500.0,0.00010999,2]
[335234518,1724004640724,-2549.89,0.00010999,2]
[335234519,1724004640733,-500.0,0.00010999,2]
[335234520,1724004640742,-2549.89,0.00010999,2]
[335234521,1724004640752,-500.0,0.00010999,2]
[335234522,1724004640766,-500.0,0.00010999,2]
[335234523,1724004640775,-2481.28927775,0.00010999,2]
[335234524,1724004640818,-68.60905612,0.00010999,2]
[335234525,1724004640828,-500.0,0.00010999,2]
[335234526,1724004640840,-396.790544,0.00010999,2]
[335234527,1724004640861,-103.209456,0.00010999,2]
[335234528,1724004640871,-500.0,0.00010999,2]
[335234529,1724004640881,-300.68631039,0.00010999,2]
[335234530,1724004640890,-500.0,0.00010999,2]
[335234531,1724004640899,-500.0,0.00010999,2]
[335234532,1724004640908,-500.0,0.00010999,2]
[335234533,1724004640917,-500.0,0.00010999,2]
[335234534,1724004640927,-500.0,0.00010999,2]
[335234535,1724004640936,-500.0,0.00010999,2]
[335234536,1724004640946,-500.0,0.00010999,2]
[335234537,1724004640955,-500.0,0.00010999,2]
[335234538,1724004640965,-500.0,0.00010999,2]
[335234539,1724004640974,-500.0,0.00010999,2]
[335234540,1724004640983,-398.08303361,0.00010999,2]
[335234541,1724004640995,-101.91696639,0.00010999,2]
[335234542,1724004641005,-500.0,0.00010999,2]
[335234543,1724004641015,-500.0,0.00010999,2]
[335234544,1724004641023,-346.26275494,0.00010999,2]